fUSD/lending_fUSD_20250616
["ID","MTS","AMOUNT","RATE_DAILY","PERIOD"]
[366062582,1750043445727,-614.08852907,0.00016438,2]
[366062583,1750043445737,-150.0,0.00016438,2]
[366062584,1750043445746,-766.79,0.00016438,2]
[366062585,1750043445756,-500.0,0.00016438,2]
[366062586,1750043445766,-503.16139953,0.00016438,2]
[366062587,1750043445776,-490.0,0.00016438,2]
[366062588,1750043445786,-500.0,0.00016438,2]
[366062589,1750043445795,-500.0,0.00016438,2]
[366062590,1750043445805,-547.65834527,0.00016438,2]
[366062591,1750043445815,-1517.5,0.00016438,2]
[366062592,1750043445825,-490.0,0.00016438,2]
[366062593,1750043445834,-150.0,0.00016438,2]
[366062594,1750043445845,-490.0,0.00016438,2]
[366062595,1750043445854,-494.40490156,0.00016438,2]
[366062596,1750043445864,-500.0,0.00016438,2]
[366062597,1750043445874,-490.0,0.00016438,2]
[366062598,1750043445884,-151.0,0.00016438,2]
[366062599,1750043445894,-150.0,0.00016438,2]
[366062600,1750043445904,-490.0,0.00016438,2]
[366062601,1750043445914,-490.0,0.00016438,2]
[366062602,1750043445924,-150.0,0.00016438,2]
[366062603,1750043445934,-1418.01,0.00016438,2]
[366062604,1750043445944,-150.0,0.00016438,2]
[366062605,1750043445955,-2597.87,0.00016438,2]
[366062606,1750043445964,-490.0,0.00016438,2]
[366062607,1750043445975,-2641.39,0.00016438,2]
[366062608,1750043445985,-490.0,0.00016438,2]
[366062609,1750043445995,-500.0,0.00016438,2]
[366062610,1750043446005,-978.297286,0.00016438,2]
[366062611,1750043446107,-616.02,0.00016438,2]
[366062612,1750043446165,-593.65,0.00016438,2]
[366062613,1750043446175,-150.0,0.00016438,2]
[366062614,1750043446184,-490.0,0.00016438,2]
[366062615,1750043446196,-500.0,0.00016438,2]
[366062616,1750043446207,-490.0,0.00016438,2]
[366062617,1750043446221,-500.0,0.00016438,2]
[366062618,1750043446231,-151.0,0.00016438,2]
[366062619,1750043446242,-500.0,0.00016438,2]
[366062620,1750043446253,-151.0,0.00016438,2]
[366062621,1750043446263,-490.0,0.00016438,2]
[366062622,1750043446273,-490.0,0.00016438,2]
[366062623,1750043446283,-978.297286,0.00016438,2]
[366062624,1750043446294,-490.0,0.00016438,2]
[366062625,1750043446306,-1388.54,0.00016438,2]
[366062626,1750043446316,-496.45715751,0.00016438,2]
[366062627,1750043446327,-490.0,0.00016438,2]
[366062628,1750043446336,-2106.21,0.00016438,2]
[366062629,1750043446346,-490.0,0.00016438,2]
[366062630,1750043446356,-490.0,0.00016438,2]
[366062631,1750043446367,-490.0,0.00016438,2]
[366062632,1750043446377,-490.0,0.00016438,2]
[366062633,1750043446388,-490.0,0.00016438,2]
[366062634,1750043446398,-490.0,0.00016438,2]
[366062635,1750043446407,-496.23969559,0.00016438,2]
[366062636,1750043446417,-490.44183243,0.00016438,2]
[366062637,1750043446428,-151.0,0.00016438,2]
[366062638,1750043446439,-571.47,0.00016438,2]
[366062639,1750043446450,-726.24,0.00016438,2]
[366062640,1750043446461,-490.0,0.00016438,2]
[366062641,1750043446472,-504.43675865,0.00016438,2]
[366062642,1750043446482,-1844.5,0.00016438,2]
[366062643,1750043446491,-151.0,0.00016438,2]
[366062644,1750043446501,-490.0,0.00016438,2]
[366062645,1750043446511,-490.0,0.00016438,2]
[366062646,1750043446521,-490.0,0.00016438,2]
[366062647,1750043446531,-2911.52,0.00016438,2]
[366062648,1750043446540,-560.55,0.00016438,2]
[366062649,1750043446549,-151.774858,0.00016438,2]
[366062650,1750043446560,-500.0,0.00016438,2]
[366062651,1750043446570,-509.45012815,0.00016438,2]
[366062652,1750043446579,-505.9,0.00016438,2]
[366062653,1750043446589,-212.54894843,0.00016438,2]
[366062654,1750043446598,-490.0,0.00016438,2]
[366062655,1750043446608,-607.6,0.00016438,2]
[366062656,1750043446617,-655.04,0.00016438,2]
[366062657,1750043446627,-744.07,0.00016438,2]
[366062658,1750043446637,-490.0,0.00016438,2]
[366062659,1750043446646,-490.0,0.00016438,2]
[366062660,1750043446656,-490.0,0.00016438,2]
[366062661,1750043446666,-490.0,0.00016438,2]
[366062662,1750043446675,-490.0,0.00016438,2]
[366062663,1750043446685,-492.34813118,0.00016438,2]
[366062664,1750043446694,-197.090474,0.00016438,2]
[366062666,1750043446703,-490.0,0.00016438,2]
[366062667,1750043446713,-490.0,0.00016438,2]
[366062668,1750043446722,-491.72315563,0.00016438,2]
[366062669,1750043446731,-151.0,0.00016438,2]
[366062670,1750043446740,-676.26,0.00016438,2]
[366062671,1750043446750,-1000.0,0.00016438,2]
[366062672,1750043446760,-490.0,0.00016438,2]
[366062673,1750043446769,-490.0,0.00016438,2]
[366062674,1750043446779,-513.37,0.00016438,2]
[366062675,1750043446788,-197.090474,0.00016438,2]
[366062676,1750043446798,-490.0,0.00016438,2]
[366062677,1750043446807,-1537.03,0.00016438,2]
[366062678,1750043446816,-807.03,0.00016438,2]
[366062679,1750043446826,-490.0,0.00016438,2]
[366062680,1750043446835,-490.0,0.00016438,2]
[366062681,1750043446845,-1663.62,0.00016438,2]
[366062682,1750043446854,-491.48571085,0.00016438,2]
[366062683,1750043446863,-490.0,0.00016438,2]
[366062684,1750043446873,-765.88,0.00016438,2]
[366062685,1750043446882,-577.31,0.00016438,2]
[366062686,1750043446892,-521.63,0.00016438,2]
[366062687,1750043446902,-490.0,0.00016438,2]
[366062688,1750043446911,-151.0,0.00016438,2]
[366062689,1750043446920,-498.36594803,0.00016438,2]
[366062690,1750043446930,-718.67,0.00016438,2]
[366062691,1750043446939,-490.0,0.00016438,2]
[366062692,1750043446948,-2380.83,0.00016438,2]
[366062693,1750043446958,-917.42,0.00016438,2]
[366062694,1750043446967,-490.0,0.00016438,2]
[366062695,1750043446977,-490.0,0.00016438,2]
[366062696,1750043446987,-1950.19,0.00016438,2]
[366062697,1750043446996,-494.0402997,0.00016438,2]
[366062698,1750043447006,-1607.74,0.00016438,2]
[366062699,1750043447016,-490.0,0.00016438,2]
[366062700,1750043447025,-672.79,0.00016438,2]
[366062701,1750043447035,-535.76,0.00016438,2]
[366062702,1750043447044,-490.0,0.00016438,2]
[366062703,1750043447054,-496.76247948,0.00016438,2]
[366062704,1750043447063,-490.0,0.00016438,2]
[366062705,1750043447073,-490.0,0.00016438,2]
[366062706,1750043447083,-1832.04,0.00016438,2]
[366062707,1750043447092,-564.19,0.00016438,2]
[366062708,1750043447102,-490.0,0.00016438,2]
[366062709,1750043447111,-1341.99,0.00016438,2]
[366062710,1750043447120,-490.0,0.00016438,2]
[366062711,1750043447129,-501.39,0.00016438,2]
[366062712,1750043447139,-151.0,0.00016438,2]
[366062713,1750043447148,-492.31713965,0.00016438,2]
[366062714,1750043447157,-1919.7,0.00016438,2]
[366062715,1750043447167,-902.54,0.00016438,2]
[366062716,1750043447176,-684.74,0.00016438,2]
[366062717,1750043447186,-490.0,0.00016438,2]
[366062718,1750043447195,-228.740164,0.00016438,2]
[366062719,1750043447205,-1162.59,0.00016438,2]
[366062720,1750043447218,-611.77,0.00016438,2]
[366062721,1750043447227,-644.61,0.00016438,2]
[366062722,1750043447236,-169.743312,0.00016438,2]
[366062723,1750043447246,-2149.81,0.00016438,2]
[366062724,1750043447257,-492.34736973,0.00016438,2]
[366062725,1750043447267,-563.89,0.00016438,2]
[366062726,1750043447277,-199.837897,0.00016438,2]
[366062727,1750043447287,-496.4,0.00016438,2]
[366062728,1750043447297,-464.00078561,0.00016438,2]
[366062729,1750043447307,-490.0,0.00016438,2]
[366062730,1750043447317,-490.0,0.00016438,2]
[366062731,1750043447326,-166.0,0.00016438,2]
[366062732,1750043447336,-169.743312,0.00016438,2]
[366062733,1750043447345,-166.0,0.00016438,2]
[366062734,1750043447355,-490.0,0.00016438,2]
[366062735,1750043447364,-1731.63,0.00016438,2]
[366062736,1750043447376,-490.0,0.00016438,2]
[366062737,1750043447386,-528.61,0.00016438,2]
[366062738,1750043447396,-490.0,0.00016438,2]
[366062739,1750043447406,-1995.04,0.00016438,2]
[366062740,1750043447416,-490.0,0.00016438,2]
[366062741,1750043447425,-803.71,0.00016438,2]
[366062742,1750043447435,-608.49,0.00016438,2]
[366062743,1750043447445,-490.0,0.00016438,2]
[366062744,1750043447455,-526.16,0.00016438,2]
[366062745,1750043447464,-547.06975482,0.00016438,2]
[366062746,1750043447475,-491.26307029,0.00016438,2]
[366062747,1750043447484,-489.45315941,0.00016438,2]
[366062748,1750043447495,-151.0,0.00016438,2]
[366062749,1750043447504,-494.70021302,0.00016438,2]
[366062750,1750043447514,-473.14624847,0.00016438,2]
[366062751,1750043447524,-490.0,0.00016438,2]
[366062752,1750043447533,-605.44,0.00016438,2]
[366062753,1750043447543,-492.56146032,0.00016438,2]
[366062754,1750043447553,-706.95,0.00016438,2]
[366062755,1750043447563,-963.72,0.00016438,2]
[366062756,1750043447573,-494.76089771,0.00016438,2]
[366062757,1750043447582,-490.0,0.00016438,2]
[366062758,1750043447592,-490.0,0.00016438,2]
[366062759,1750043447601,-493.33319638,0.00016438,2]
[366062760,1750043447610,-490.0,0.00016438,2]
[366062761,1750043447621,-490.0,0.00016438,2]
[366062762,1750043447630,-490.0,0.00016438,2]
[366062763,1750043447640,-490.0,0.00016438,2]
[366062764,1750043447650,-490.0,0.00016438,2]
[366062765,1750043447660,-490.0,0.00016438,2]
[366062766,1750043447670,-498.28930664,0.00016438,2]
[366062767,1750043447679,-494.50744166,0.00016438,2]
[366062768,1750043447689,-490.0,0.00016438,2]
[366062769,1750043447699,-490.0,0.00016438,2]
[366062770,1750043447708,-490.0,0.00016438,2]
[366062771,1750043447718,-536.15,0.00016438,2]
[366062772,1750043447727,-1403.13,0.00016438,2]
[366062773,1750043447737,-150.0,0.00016438,2]
[366062774,1750043447747,-153.54236,0.00016438,2]
[366062775,1750043447757,-499.03907359,0.00016438,2]
[366062776,1750043447768,-490.0,0.00016438,2]
[366062777,1750043447778,-505.38804211,0.00016438,2]
[366062778,1750043447788,-150.0,0.00016438,2]
[366062779,1750043447798,-740.24,0.00016438,2]
[366062780,1750043447808,-1923.9,0.00016438,2]
[366062781,1750043447818,-490.0,0.00016438,2]
[366062782,1750043447828,-763.5,0.00016438,2]
[366062783,1750043447837,-150.0,0.00016438,2]
[366062784,1750043447847,-448.78937037,0.00016438,2]
[366062785,1750043447857,-490.0,0.00016438,2]
[366062786,1750043447866,-150.0,0.00016438,2]
[366062787,1750043447877,-724.74,0.00016438,2]
[366062788,1750043447886,-155.84472599,0.00016438,2]
[366062789,1750043447896,-500.0,0.00016438,2]
[366062790,1750043447906,-490.0,0.00016438,2]
[366062791,1750043447915,-670.3,0.00016438,2]
[366062792,1750043447925,-498.39157963,0.00016438,2]
[366062793,1750043447935,-1597.57,0.00016438,2]
[366062794,1750043447944,-490.0,0.00016438,2]
[366062795,1750043447954,-1376.37,0.00016438,2]
[366062796,1750043447966,-490.0,0.00016438,2]
[366062797,1750043447976,-2003.98,0.00016438,2]
[366062798,1750043447986,-490.0,0.00016438,2]
[366062799,1750043447996,-496.05737498,0.00016438,2]
[366062800,1750043448005,-492.6976837,0.00016438,2]
[366062801,1750043448016,-490.0,0.00016438,2]
[366062802,1750043448026,-1045.51,0.00016438,2]
[366062803,1750043448036,-1557.29,0.00016438,2]
[366062804,1750043448045,-493.52618405,0.00016438,2]
[366062805,1750043448056,-150.0,0.00016438,2]
[366062806,1750043448065,-490.0,0.00016438,2]
[366062807,1750043448076,-490.0,0.00016438,2]
[366062808,1750043448085,-494.06517075,0.00016438,2]
[366062809,1750043448095,-4375.9,0.00016438,2]
[366062810,1750043448106,-1218.64,0.00016438,2]
[366062811,1750043448116,-150.0,0.00016438,2]
[366062812,1750043448125,-623.50799615,0.00016438,2]
[366062813,1750043448136,-2452.5,0.00016438,2]
[366062814,1750043448145,-492.12463328,0.00016438,2]
[366062815,1750043448155,-500.0,0.00016438,2]
[366062816,1750043448164,-495.58396719,0.00016438,2]
[366062817,1750043448174,-2403.24,0.00016438,2]
[366062818,1750043448184,-490.0,0.00016438,2]
[366062819,1750043448193,-490.0,0.00016438,2]
[366062820,1750043448203,-498.84814647,0.00016438,2]
[366062821,1750043448217,-1619.51,0.00016438,2]
[366062822,1750043448226,-2174.68,0.00016438,2]
[366062823,1750043448235,-490.0,0.00016438,2]
[366062824,1750043448245,-1147.05,0.00016438,2]
[366062825,1750043448256,-500.0,0.00016438,2]
[366062826,1750043448266,-495.21027509,0.00016438,2]
[366062827,1750043448276,-907.15,0.00016438,2]
[366062828,1750043448286,-566.91,0.00016438,2]
[366062829,1750043448296,-450.0,0.00016438,2]
[366062830,1750043448305,-495.3466602,0.00016438,2]
[366062831,1750043448315,-257.94950102,0.00016438,2]
[366062832,1750043448325,-500.0,0.00016438,2]
[366062833,1750043448335,-490.0,0.00016438,2]
[366062834,1750043448345,-490.0,0.00016438,2]
[366062835,1750043448355,-1041.83,0.00016438,2]
[366062836,1750043448365,-150.0,0.00016438,2]
[366062837,1750043448375,-600.05,0.00016438,2]
[366062838,1750043448385,-318.42848246,0.00016438,2]
[366062839,1750043448394,-490.0,0.00016438,2]
[366062840,1750043448405,-151.32938418,0.00016438,2]
[366062841,1750043448415,-2028.54,0.00016438,2]
[366062842,1750043448779,-490.0,0.00016438,2]
[366062843,1750043448797,-490.0,0.00016438,2]
[366062844,1750043448807,-494.22247669,0.00016438,2]
[366062845,1750043448817,-1231.03,0.00016438,2]
[366062846,1750043448826,-1773.27,0.00016438,2]
[366062847,1750043448835,-1576.9,0.00016438,2]
[366062848,1750043448845,-3303.97,0.00016438,2]
[366062849,1750043448854,-569.1,0.00016438,2]
[366062850,1750043448864,-490.0,0.00016438,2]
[366062851,1750043448874,-658.96,0.00016438,2]
[366062852,1750043448884,-493.20890796,0.00016438,2]
[366062853,1750043448894,-468.68321448,0.00016438,2]
[366062854,1750043448903,-2036.34,0.00016438,2]
[366062855,1750043448913,-1973.02,0.00016438,2]
[366062856,1750043448924,-490.0,0.00016438,2]
[366062857,1750043448934,-325.500776,0.00016438,2]
[366062858,1750043448944,-491.47103858,0.00016438,2]
[366062859,1750043448954,-1067.79,0.00016438,2]
[366062860,1750043448964,-2044.38,0.00016438,2]
[366062861,1750043448974,-490.0,0.00016438,2]
[366062862,1750043448984,-490.0,0.00016438,2]
[366062863,1750043448994,-490.0,0.00016438,2]
[366062864,1750043449004,-1892.27,0.00016438,2]
[366062865,1750043449014,-2239.66,0.00016438,2]
[366062866,1750043449024,-279.84293113,0.00016438,2]
[366062867,1750043449033,-789.16,0.00016438,2]
[366062868,1750043449043,-490.0,0.00016438,2]
[366062869,1750043449053,-1249.01,0.00016438,2]
[366062870,1750043449064,-518.00568432,0.00016438,2]
[366062871,1750043449074,-534.04635329,0.00016438,2]
[366062872,1750043449084,-325.500776,0.00016438,2]
[366062873,1750043449094,-3968.73,0.00016438,2]
[366062874,1750043449104,-440.0,0.00016438,2]
[366062875,1750043449114,-867.24,0.00016438,2]
[366062876,1750043449125,-490.0,0.00016438,2]
[366062877,1750043449135,-729.13,0.00016438,2]
[366062878,1750043449146,-490.0,0.00016438,2]
[366062879,1750043449156,-1103.11,0.00016438,2]
[366062880,1750043449166,-491.74115082,0.00016438,2]
[366062881,1750043449176,-5288.69,0.00016438,2]
[366062882,1750043449186,-495.5283938,0.00016438,2]
[366062883,1750043449196,-1612.4,0.00016438,2]
[366062884,1750043449206,-1183.03,0.00016438,2]
[366062885,1750043449219,-490.0,0.00016438,2]
[366062886,1750043449229,-490.95324714,0.00016438,2]
[366062887,1750043449239,-490.0,0.00016438,2]
[366062888,1750043449249,-2106.04,0.00016438,2]
[366062889,1750043449261,-481.94041308,0.00016438,2]
[366062890,1750043449271,-2219.2,0.00016438,2]
[366062891,1750043449281,-490.0,0.00016438,2]
[366062892,1750043449295,-2028.4,0.00016438,2]
[366062893,1750043449307,-494.35590155,0.00016438,2]
[366062894,1750043449317,-1265.27,0.00016438,2]
[366062895,1750043449327,-490.0,0.00016438,2]
[366062896,1750043449337,-490.0,0.00016438,2]
[366062897,1750043449348,-492.93260265,0.00016438,2]
[366062898,1750043449358,-581.5,0.00016438,2]
[366062899,1750043449368,-521.62,0.00016438,2]
[366062900,1750043449378,-1589.99,0.00016438,2]
[366062901,1750043449388,-622.74887609,0.00016438,2]
[366062902,1750043449399,-3376.08,0.00016438,2]
[366062903,1750043449408,-490.0,0.00016438,2]
[366062904,1750043449418,-499.37213177,0.00016438,2]
[366062905,1750043449429,-490.0,0.00016438,2]
[366062906,1750043449439,-1070.65,0.00016438,2]
[366062907,1750043449449,-490.0,0.00016438,2]
[366062908,1750043449459,-490.0,0.00016438,2]
[366062909,1750043449468,-2752.92,0.00016438,2]
[366062910,1750043449478,-2055.01,0.00016438,2]
[366062911,1750043449488,-491.30125803,0.00016438,2]
[366062912,1750043449498,-490.0,0.00016438,2]
[366062913,1750043449508,-490.0,0.00016438,2]
[366062914,1750043449519,-1431.64,0.00016438,2]
[366062915,1750043449530,-2645.29,0.00016438,2]
[366062916,1750043449540,-1222.88,0.00016438,2]
[366062917,1750043449549,-697.6,0.00016438,2]
[366062918,1750043449559,-490.0,0.00016438,2]
[366062919,1750043449570,-7193.58,0.00016438,2]
[366062920,1750043449580,-497.10639667,0.00016438,2]
[366062921,1750043449589,-1142.66,0.00016438,2]
[366062922,1750043449599,-460.0,0.00016438,2]
[366062923,1750043449611,-536.52,0.00016438,2]
[366062924,1750043449620,-853.54,0.00016438,2]
[366062925,1750043449630,-494.55262997,0.00016438,2]
[366062926,1750043449639,-490.0,0.00016438,2]
[366062927,1750043449650,-3693.76,0.00016438,2]
[366062928,1750043449659,-2374.78,0.00016438,2]
[366062929,1750043449669,-1721.87,0.00016438,2]
[366062930,1750043449679,-1684.35,0.00016438,2]
[366062931,1750043449689,-578.9,0.00016438,2]
[366062932,1750043449699,-490.0,0.00016438,2]
[366062933,1750043449709,-490.0,0.00016438,2]
[366062934,1750043449719,-490.0,0.00016438,2]
[366062935,1750043449728,-657.17,0.00016438,2]
[366062936,1750043449738,-616.89,0.00016438,2]
[366062937,1750043449748,-490.0,0.00016438,2]
[366062938,1750043449758,-490.0,0.00016438,2]
[366062939,1750043449769,-490.0,0.00016438,2]
[366062940,1750043449779,-1608.52,0.00016438,2]
[366062941,1750043449789,-160.93308419,0.00016438,2]
[366062942,1750043449799,-8019.0,0.00016438,2]
[366062943,1750043449808,-490.0,0.00016438,2]
[366062944,1750043449818,-164.15426659,0.00016438,2]
[366062945,1750043449827,-4373.08,0.00016438,2]
[366062946,1750043449837,-490.0,0.00016438,2]
[366062947,1750043449847,-500.0,0.00016438,2]
[366062948,1750043449857,-3563.07,0.00016438,2]
[366062949,1750043449866,-500.0,0.00016438,2]
[366062950,1750043449876,-500.0,0.00016438,2]
[366062951,1750043449885,-500.0,0.00016438,2]
[366062952,1750043449895,-490.0,0.00016438,2]
[366062953,1750043449904,-465.82726332,0.00016438,2]
[366062954,1750043449914,-763.09,0.00016438,2]
[366062955,1750043449924,-1667.01,0.00016438,2]
[366062956,1750043449934,-1077.9,0.00016438,2]
[366062957,1750043449943,-493.80287435,0.00016438,2]
[366062958,1750043449953,-490.0,0.00016438,2]
[366062959,1750043449963,-233.791655,0.00016438,2]
[366062960,1750043449972,-490.0,0.00016438,2]
[366062961,1750043449982,-151.0,0.00016438,2]
[366062962,1750043449991,-495.60981121,0.00016438,2]
[366062963,1750043450001,-507.3207303,0.00016438,2]
[366062964,1750043450011,-662.88,0.00016438,2]
[366062965,1750043450022,-2554.64,0.00016438,2]
[366062966,1750043450032,-462.24388347,0.00016438,2]
[366062967,1750043450042,-490.0,0.00016438,2]
[366062968,1750043450051,-495.73973931,0.00016438,2]
[366062969,1750043450060,-233.791655,0.00016438,2]
[366062970,1750043450070,-1791.07,0.00016438,2]
[366062971,1750043450079,-490.0,0.00016438,2]
[366062972,1750043450088,-490.0,0.00016438,2]
[366062973,1750043450098,-4049.27,0.00016438,2]
[366062974,1750043450108,-490.0,0.00016438,2]
[366062975,1750043450117,-504.50713082,0.00016438,2]
[366062976,1750043450127,-490.0,0.00016438,2]
[366062977,1750043450137,-495.42036203,0.00016438,2]
[366062978,1750043450146,-489.56399469,0.00016438,2]
[366062979,1750043450156,-541.95,0.00016438,2]
[366062980,1750043450165,-627.6,0.00016438,2]
[366062981,1750043450174,-495.1496452,0.00016438,2]
[366062982,1750043450184,-1721.97,0.00016438,2]
[366062983,1750043450193,-490.0,0.00016438,2]
[366062984,1750043450203,-504.05,0.00016438,2]
[366062985,1750043450216,-629.04,0.00016438,2]
[366062986,1750043450225,-5398.34,0.00016438,2]
[366062987,1750043450235,-1166.65,0.00016438,2]
[366062988,1750043450244,-245.077124,0.00016438,2]
[366062989,1750043450254,-2668.96,0.00016438,2]
[366062990,1750043450265,-514.55,0.00016438,2]
[366062991,1750043450274,-514.55,0.00016438,2]
[366062992,1750043450284,-514.55,0.00016438,2]
[366062993,1750043450294,-514.55,0.00016438,2]
[366062994,1750043450305,-514.55,0.00016438,2]
[366062995,1750043450314,-514.55,0.00016438,2]
[366062996,1750043450324,-245.077124,0.00016438,2]
[366062997,1750043450333,-577.55,0.00016438,2]
[366062998,1750043450343,-540.25,0.00016438,2]
[366062999,1750043450352,-490.0,0.00016438,2]
[366063000,1750043450361,-11325.14,0.00016438,2]
[366063001,1750043450371,-2528.05,0.00016438,2]
[366063002,1750043450381,-493.36340146,0.00016438,2]
[366063003,1750043450390,-496.59067642,0.00016438,2]
[366063004,1750043450400,-490.0,0.00016438,2]
[366063005,1750043450410,-2138.96,0.00016438,2]
[366063006,1750043450422,-490.0,0.00016438,2]
[366063007,1750043450432,-2877.85,0.00016438,2]
[366063008,1750043450441,-490.0,0.00016438,2]
[366063009,1750043450451,-275.95425094,0.00016438,2]
[366063010,1750043450461,-493.11991115,0.00016438,2]
[366063011,1750043450471,-490.0,0.00016438,2]
[366063012,1750043450481,-490.0,0.00016438,2]
[366063013,1750043450491,-1232.25,0.00016438,2]
[366063014,1750043450501,-4860.49,0.00016438,2]
[366063015,1750043450511,-490.0,0.00016438,2]
[366063016,1750043450522,-490.0,0.00016438,2]
[366063017,1750043450531,-151.0,0.00016438,2]
[366063018,1750043450541,-490.0,0.00016438,2]
[366063019,1750043450550,-492.33115449,0.00016438,2]
[366063020,1750043450560,-2669.87,0.00016438,2]
[366063021,1750043450570,-8069.85,0.00016438,2]
[366063022,1750043450579,-920.74,0.00016438,2]
[366063023,1750043450589,-490.0,0.00016438,2]
[366063024,1750043450599,-2073.81,0.00016438,2]
[366063025,1750043450608,-700.28,0.00016438,2]
[366063026,1750043450618,-768.8,0.00016438,2]
[366063027,1750043450627,-6327.52,0.00016438,2]
[366063028,1750043450636,-151.0,0.00016438,2]
[366063029,1750043450646,-490.0,0.00016438,2]
[366063030,1750043450655,-489.26984292,0.00016438,2]
[366063031,1750043450665,-3119.43,0.00016438,2]
[366063032,1750043450674,-588.46,0.00016438,2]
[366063033,1750043450684,-668.29,0.00016438,2]
[366063034,1750043450694,-1900.05,0.00016438,2]
[366063035,1750043450703,-1197.59,0.00016438,2]
[366063036,1750043450713,-682.78,0.00016438,2]
[366063037,1750043450722,-513.07576529,0.00016438,2]
[366063038,1750043450733,-2437.38,0.00016438,2]
[366063039,1750043450742,-496.98902866,0.00016438,2]
[366063040,1750043450751,-495.07824544,0.00016438,2]
[366063041,1750043450761,-2097.37,0.00016438,2]
[366063042,1750043450771,-1662.78,0.00016438,2]
[366063043,1750043450781,-225.18,0.00016438,2]
[366063044,1750043450790,-523.15,0.00016438,2]
[366063045,1750043450800,-1017.75,0.00016438,2]
[366063046,1750043450810,-490.0,0.00016438,2]
[366063047,1750043450819,-490.0,0.00016438,2]
[366063048,1750043450829,-4254.54,0.00016438,2]
[366063049,1750043450838,-460.65241337,0.00016438,2]
[366063050,1750043450849,-490.0,0.00016438,2]
[366063051,1750043450859,-1310.4,0.00016438,2]
[366063052,1750043450868,-491.93690777,0.00016438,2]
[366063053,1750043450878,-11354.19,0.00016438,2]
[366063054,1750043450888,-922.44,0.00016438,2]
[366063055,1750043450897,-1892.34,0.00016438,2]
[366063056,1750043450907,-490.0,0.00016438,2]
[366063057,1750043450917,-490.0,0.00016438,2]
[366063058,1750043450927,-1162.84,0.00016438,2]
[366063059,1750043450936,-4177.12,0.00016438,2]
[366063060,1750043450946,-1503.66,0.00016438,2]
[366063061,1750043450955,-490.0,0.00016438,2]
[366063062,1750043450965,-490.0,0.00016438,2]
[366063063,1750043450975,-226.22894884,0.00016438,2]
[366063064,1750043450984,-585.04,0.00016438,2]
[366063065,1750043450994,-2068.1,0.00016438,2]
[366063066,1750043451003,-1568.62,0.00016438,2]
[366063067,1750043451012,-367.42976773,0.00016438,2]
[366063068,1750043451022,-2010.94,0.00016438,2]
[366063069,1750043451031,-490.0,0.00016438,2]
[366063070,1750043451041,-1309.69,0.00016438,2]
[366063071,1750043451050,-2648.87,0.00016438,2]
[366063072,1750043451061,-497.82487418,0.00016438,2]
[366063073,1750043451070,-493.19270253,0.00016438,2]
[366063074,1750043451079,-151.656887,0.00016438,2]
[366063075,1750043451089,-553.89259933,0.00016438,2]
[366063076,1750043451098,-3604.47,0.00016438,2]
[366063077,1750043451108,-491.96164906,0.00016438,2]
[366063078,1750043451118,-500.0,0.00016438,2]
[366063079,1750043451127,-507.69793493,0.00016438,2]
[366063080,1750043451138,-498.06047824,0.00016438,2]
[366063081,1750043451147,-490.0,0.00016438,2]
[366063082,1750043451158,-11354.28,0.00016438,2]